fUST/lending_fUST_20250831
["ID","MTS","AMOUNT","RATE_DAILY","PERIOD"]
[382391421,1756591317041,-151.0,0.00018096,2]
[382391422,1756591317143,-151.0,0.00018096,2]
[382391423,1756591317159,-88.968067,0.00018096,2]
[382391424,1756591317169,-151.0,0.00018096,2]
[382391425,1756591317179,-500.0,0.00018096,2]
[382391426,1756591317188,-151.0,0.00018096,2]
[382391427,1756591317198,-47.48589771,0.00018096,2]
[382391428,1756591317212,-103.51410229,0.00018096,2]
[382391429,1756591317222,-177.80262302,0.00018096,2]
[382391430,1756591317233,-385.29569152,0.00018096,2]
[382391431,1756591317308,-114.70430848,0.00018096,2]
[382391432,1756591317317,-500.0,0.00018096,2]
[382391433,1756591317327,-151.0,0.00018096,2]
[382391434,1756591317337,-152.14158933,0.00018096,2]
[382391435,1756591317346,-201.30191311,0.00018096,2]
[382391436,1756591369175,-250.0,0.00017907,2]
[382391437,1756591369224,-9500.01,0.00018096,2]
[382391438,1756591369239,-10000.01,0.00018096,2]
[382391439,1756591369293,-10000.01,0.00018096,2]
[382391440,1756591369425,-4880.70243948,0.00018096,2]
[382391441,1756591369455,-45.7841416,0.00018096,2]
[382391442,1756591369509,-147.03683784,0.00018096,2]
[382391443,1756591369575,-125.50145716,0.00018096,2]
[382391444,1756591369604,-272.538295,0.00018096,2]
[382391445,1756591369637,-272.538295,0.00018096,2]
[382391446,1756591369665,-272.538295,0.00018096,2]
[382391447,1756591369692,-151.0,0.00018096,2]
[382391448,1756591369721,-272.538295,0.00018096,2]
[382391449,1756591369748,-151.008628,0.00018096,2]
[382391450,1756591369776,-500.0,0.00018096,2]
[382391451,1756591369804,-272.538295,0.00018096,2]
[382391452,1756591369831,-272.538295,0.00018096,2]
[382391453,1756591369859,-272.538295,0.00018096,2]
[382391454,1756591369886,-272.538295,0.00018096,2]
[382391455,1756591369914,-272.538295,0.00018096,2]
[382391456,1756591369942,-272.538295,0.00018096,2]
[382391457,1756591369969,-272.538295,0.00018096,2]
[382391458,1756591369997,-272.538295,0.00018096,2]
[382391459,1756591370025,-272.538295,0.00018096,2]
[382391460,1756591370052,-272.538295,0.00018096,2]
[382391461,1756591370079,-13.91756968,0.00018096,2]
[382391462,1756591370187,-486.08243032,0.00018096,2]
[382391463,1756591370215,-272.538295,0.00018096,2]
[382391464,1756591370243,-272.538295,0.00018096,2]
[382391465,1756591370271,-272.538295,0.00018096,2]
[382391466,1756591370300,-272.538295,0.00018096,2]
[382391467,1756591370329,-272.538289,0.00018096,2]
[382391468,1756591370357,-151.0,0.00018096,2]
[382391469,1756591370385,-151.0,0.00018096,2]
[382391470,1756591370413,-250.264256,0.00018096,2]
[382391471,1756591370442,-151.0,0.00018096,2]
[382391472,1756591370471,-151.0,0.00018096,2]
[382391473,1756591370499,-1462.0,0.00018096,2]
[382391474,1756591370527,-151.0,0.00018096,2]
[382391475,1756591370555,-500.0,0.00018096,2]
[382391476,1756591370584,-161.0,0.00018096,2]
[382391477,1756591370723,-162.81172432,0.00018096,2]
[382391478,1756591370750,-157.01787417,0.00018096,2]
[382391479,1756591370778,-500.0,0.00018096,2]
[382391480,1756591370807,-151.0,0.00018096,2]
[382391481,1756591370837,-151.0,0.00018096,2]
[382391482,1756591370866,-151.0,0.00018096,2]
[382391483,1756591371059,-151.0,0.00018096,2]
[382391484,1756591371092,-151.0,0.00018096,2]
[382391485,1756591371127,-151.0,0.00018096,2]
[382391486,1756591371158,-151.0,0.00018096,2]
[382391487,1756591371186,-151.0,0.00018096,2]
[382391488,1756591371215,-151.0,0.00018096,2]
[382391489,1756591371244,-151.0,0.00018096,2]
[382391490,1756591371272,-151.0,0.00018096,2]
[382391491,1756591371300,-151.0,0.00018096,2]
[382391492,1756591371329,-151.0,0.00018096,2]
[382391493,1756591371361,-151.0,0.00018096,2]
[382391494,1756591371390,-151.0,0.00018096,2]
[382391495,1756591371420,-151.0,0.00018096,2]
[382391496,1756591371448,-327.0,0.00018096,2]
[382391497,1756591371477,-214.050896,0.00018096,2]
[382391498,1756591371505,-325.0,0.00018096,2]
[382391499,1756591371533,-151.0,0.00018096,2]
[382391500,1756591371563,-151.0,0.00018096,2]
[382391501,1756591371593,-151.0,0.00018096,2]
[382391502,1756591371624,-151.0,0.00018096,2]
[382391503,1756591371652,-151.0,0.00018096,2]
[382391504,1756591371682,-135.24901102,0.00018096,2]
[382391505,1756591371805,-15.75098898,0.00018096,2]
[382391506,1756591371848,-151.0,0.00018096,2]
[382391507,1756591371880,-151.0,0.00018096,2]
[382391508,1756591371920,-151.0,0.00018096,2]
[382391509,1756591371954,-151.0,0.00018096,2]
[382391510,1756591371991,-151.0,0.00018096,2]
[382391511,1756591372022,-151.0,0.00018096,2]
[382391512,1756591372052,-151.0,0.00018096,2]
[382391513,1756591372082,-151.0,0.00018096,2]
[382391514,1756591372112,-151.0,0.00018096,2]
[382391515,1756591372143,-151.0,0.00018096,2]
[382391516,1756591372173,-151.0,0.00018096,2]
[382391517,1756591372203,-168.0379,0.00018096,2]
[382391518,1756591372232,-151.0,0.00018096,2]
[382391519,1756591372262,-151.0,0.00018096,2]
[382391520,1756591372292,-151.0,0.00018096,2]
[382391521,1756591372321,-151.0,0.00018096,2]
[382391522,1756591372352,-151.0,0.00018096,2]
[382391523,1756591372382,-151.0,0.00018096,2]
[382391524,1756591372415,-151.0,0.00018096,2]
[382391525,1756591372447,-151.0,0.00018096,2]
[382391526,1756591372477,-151.0,0.00018096,2]
[382391527,1756591372508,-151.0,0.00018096,2]
[382391528,1756591372543,-151.0,0.00018096,2]
[382391529,1756591372577,-151.0,0.00018096,2]
[382391530,1756591372608,-267.254512,0.00018096,2]
[382391531,1756591372646,-151.0,0.00018096,2]
[382391532,1756591372679,-151.0,0.00018096,2]
[382391533,1756591372711,-151.0,0.00018096,2]
[382391534,1756591372741,-151.0,0.00018096,2]
[382391535,1756591372772,-151.0,0.00018096,2]
[382391536,1756591372804,-151.0,0.00018096,2]
[382391537,1756591372835,-151.0,0.00018096,2]
[382391538,1756591372950,-151.0,0.00018096,2]
[382391539,1756591372980,-151.0,0.00018096,2]
[382391540,1756591373010,-151.0,0.00018096,2]
[382391541,1756591373041,-151.0,0.00018096,2]
[382391542,1756591373072,-255.044073,0.00018096,2]
[382391543,1756591373104,-203.314463,0.00018096,2]
[382391544,1756591373135,-203.314463,0.00018096,2]
[382391545,1756591373166,-203.314463,0.00018096,2]
[382391546,1756591373197,-203.314463,0.00018096,2]
[382391547,1756591373230,-203.314463,0.00018096,2]
[382391548,1756591373263,-203.314463,0.00018096,2]
[382391549,1756591373294,-203.314463,0.00018096,2]
[382391550,1756591373328,-203.314463,0.00018096,2]
[382391551,1756591373358,-203.314463,0.00018096,2]
[382391552,1756591373390,-203.314463,0.00018096,2]
[382391553,1756591373422,-203.314463,0.00018096,2]
[382391554,1756591373454,-203.314463,0.00018096,2]
[382391555,1756591373490,-203.314463,0.00018096,2]
[382391556,1756591373521,-203.314463,0.00018096,2]
[382391557,1756591373551,-203.314463,0.00018096,2]
[382391558,1756591373581,-203.314463,0.00018096,2]
[382391559,1756591373612,-203.314463,0.00018096,2]
[382391560,1756591373839,-203.314463,0.00018096,2]
[382391561,1756591373868,-203.314463,0.00018096,2]
[382391562,1756591373900,-203.314467,0.00018096,2]
[382391563,1756591378302,-61.08985736,0.00018096,2]
[382391564,1756591378317,-203.314463,0.00018096,2]
[382391565,1756591378334,-66.12030564,0.00018096,2]
[382391566,1756591378343,-137.19415736,0.00018096,2]
[382391567,1756591378527,-193.33046864,0.00018096,2]
[382391568,1756591378538,-9.98399436,0.00018096,2]
[382391569,1756591378587,-203.314467,0.00018096,2]
[382391570,1756591378602,-117.22616464,0.00018096,2]
[382391571,1756591378747,-32.11716136,0.00018096,2]
[382391573,1756591432868,-196.56996436,0.00017622,2]
[382391664,1756591832356,-38.99038164,0.00017622,2]
[382391665,1756591832368,-653.16437263,0.00017996,2]
[382391666,1756591832378,-1608.0145894,0.00018085,2]
[382391667,1756591832387,-966.2963936,0.00018085,2]
[382391668,1756591832396,-2618.2481025,0.00018085,2]
[382391669,1756591832406,-832.0,0.00018093,2]
[382391670,1756591832416,-1200.0,0.00018094,2]
[382391671,1756591832427,-300.0,0.00018094,2]
[382391672,1756591832437,-300.0,0.00018094,2]
[382391673,1756591832447,-300.0,0.00018094,2]
[382391674,1756591832458,-512.35388916,0.00018096,2]
[382391695,1756591837880,-505.75395028,0.00018096,2]
[382391976,1756591846353,-25033.72554534,0.00018096,2]
[382391979,1756591846367,-151.0,0.00018096,2]
[382391981,1756591846379,-151.0,0.00018096,2]
[382391983,1756591846391,-667.06845716,0.00018096,2]
[382392293,1756591938597,-5000.0,0.00017914,2]
[382392294,1756592019502,10000.0,0.00027397,120]
[382392295,1756592052895,800.0,0.00017845,2]
[382392298,1756592191929,348.654859,0.00013699,2]
[382392299,1756592195886,500.0,0.00027397,120]
[382392300,1756592215526,677.45,0.00027397,120]
[382392302,1756592405182,235.560347,0.00017685,2]
[382392303,1756592533131,921.2205066,0.00017859,2]
[382392304,1756592680483,204.1260271,0.00017581,2]
[382392323,1756592869604,7490.4482603,0.00018,2]
[382392324,1756592869633,10000.01,0.00018,2]
[382392325,1756592869659,3152.77795724,0.00018,2]
[382392408,1756593037916,-800.0,0.00018021,2]
[382392410,1756593037925,-160.0,0.00018084,2]
[382392412,1756593037935,-2077.49710528,0.00018085,2]
[382392414,1756593037944,-831.0,0.00018095,2]
[382392416,1756593037953,-300.0,0.00018095,2]
[382392418,1756593037963,-9600.39691164,0.00018096,2]
[382392420,1756593037972,-151.0,0.00018096,2]
[382392422,1756593037981,-168.0,0.00018135,2]
[382392424,1756593037991,-168.0,0.00018555,2]
[382392426,1756593038000,-571.51882606,0.00018638,2]
[382392428,1756593038009,-168.0,0.00018668,2]
[382392430,1756593038018,-207.86243779,0.0001872,2]
[382392432,1756593038028,-500.0,0.00018729,2]
[382392434,1756593038037,-500.0,0.00018729,2]
[382392436,1756593038046,-500.0,0.00018729,2]
[382392438,1756593038055,-151.0,0.00018729,2]
[382392440,1756593038064,-500.0,0.00018729,2]
[382392442,1756593038074,-500.0,0.00018729,2]
[382392444,1756593038083,-151.0,0.00018729,2]
[382392446,1756593038092,-500.0,0.00018729,2]
[382392448,1756593038101,-151.0,0.00018729,2]
[382392450,1756593038111,-151.0,0.00018729,2]
[382392452,1756593038120,-151.0,0.00018729,2]
[382392454,1756593038129,-500.0,0.00018729,2]
[382392456,1756593038139,-268.9222995,0.00018729,2]
[382392458,1756593038148,-249.32396124,0.00018729,2]
[382392639,1756593126360,339.133028,0.00013699,2]
[382392641,1756593251432,455.43045761,0.00018,2]
[382392642,1756593259588,201.9445424,0.00018,2]
[382392687,1756594232309,-300.0,0.00018134,2]
[382392689,1756594232319,-357.37500001,0.00018135,2]
[382392886,1756594265957,322.176376,0.00013699,2]
[382392890,1756594776446,155.0,0.00027397,120]
[382392892,1756595105834,-497.0,0.00018134,2]
[382392893,1756595106256,-4534.54763875,0.00018135,2]
[382392894,1756595106340,-4442.15500295,0.00018135,2]
[382392895,1756595106372,-1115.6999941,0.00018135,2]
[382392896,1756595106481,-257.25,0.00018633,3]
[382392897,1756595106514,-771.75,0.00018633,3]
[382392898,1756595112826,500.0,0.00018642,2]
[382392899,1756595123672,151.0,0.00018642,2]
[382392900,1756595160896,500.0,0.00018642,2]
[382392901,1756595164387,300.0,0.00018641,2]
[382392903,1756595310818,334.289099,0.00013699,2]
[382393058,1756595438483,-1526.34538136,0.00018206,2]
[382393059,1756595438492,-166.28995024,0.00018622,2]
[382393060,1756595438501,-300.0,0.00018639,2]
[382393061,1756595438511,-189.84969033,0.0001864,2]
[382393062,1756595438521,-500.0,0.0001864,2]
[382393063,1756595438531,-500.0,0.0001864,2]
[382393064,1756595438540,-500.0,0.0001864,2]
[382393065,1756595438550,-500.0,0.0001864,2]
[382393066,1756595438560,-600.94451456,0.0001864,2]
[382393067,1756595438569,-171.80941543,0.0001864,2]
[382393068,1756595438579,-500.0,0.0001864,2]
[382393069,1756595438588,-500.0,0.0001864,2]
[382393070,1756595438597,-500.0,0.0001864,2]
[382393071,1756595438606,-500.0,0.0001864,2]
[382393072,1756595438616,-500.0,0.0001864,2]
[382393073,1756595438626,-500.0,0.0001864,2]
[382393074,1756595438635,-500.0,0.0001864,2]
[382393075,1756595438645,-500.0,0.0001864,2]
[382393076,1756595438657,-500.0,0.0001864,2]
[382393077,1756595438667,-500.0,0.0001864,2]
[382393078,1756595438678,-500.0,0.0001864,2]
[382393079,1756595438690,-500.0,0.0001864,2]
[382393080,1756595438700,-500.0,0.0001864,2]
[382393081,1756595438711,-500.0,0.0001864,2]
[382393082,1756595438723,-500.0,0.0001864,2]
[382393083,1756595438735,-500.0,0.0001864,2]
[382393084,1756595438745,-500.0,0.0001864,2]
[382393085,1756595438756,-219.78092599,0.0001864,2]
[382393086,1756595438770,-280.21907401,0.0001864,2]
[382393087,1756595438780,-254.7299904,0.0001864,2]
[382393088,1756595438794,-245.2700096,0.0001864,2]
[382393089,1756595438804,-296.87109759,0.0001864,2]
[382393090,1756595438815,-606.93529036,0.0001864,2]
[382393091,1756595438826,-223.0615799,0.0001864,2]
[382393092,1756595438840,-276.9384201,0.0001864,2]
[382393093,1756595438852,-17.60234005,0.0001864,2]
[382393094,1756595438879,-402.73041527,0.0001864,2]
[382393127,1756595440747,-79.66724468,0.0001864,2]
[382393128,1756595440757,-156.8465969,0.0001864,2]
[382393129,1756595440767,-427.164803,0.0001864,2]
[382393139,1756595688790,200.0,0.00018,2]
[382393140,1756595861858,5000.0,0.00018,2]
[382393144,1756596370262,335.133601,0.00013699,2]
[382393804,1756596644823,-595.08573902,0.00018428,2]
[382394021,1756596646915,-422.748628,0.00018428,2]
[382394023,1756596646927,-1736.55618938,0.00018428,2]
[382394025,1756596646938,-4415.9573192,0.0001854,2]
[382394028,1756596646950,-611.95632352,0.0001854,2]
[382394030,1756596646959,-1200.0,0.00018624,2]
[382394032,1756596646968,-1200.0,0.00018626,2]
[382394034,1756596646977,-300.0,0.00018626,2]
[382394036,1756596646987,-300.0,0.00018626,2]
[382394037,1756596646996,-300.0,0.00018626,2]
[382394039,1756596647005,-20274.60935796,0.00018629,2]
[382394042,1756596647016,-151.0,0.00018629,2]
[382394044,1756596647025,-169.962972,0.00018629,2]
[382394046,1756596647035,-151.0,0.00018629,2]
[382394048,1756596647044,-151.0,0.00018629,2]
[382394050,1756596647054,-151.0,0.00018629,2]
[382394052,1756596647063,-151.0,0.00018629,2]
[382394054,1756596647073,-279.340074,0.00018629,2]
[382394056,1756596647082,-279.340074,0.00018629,2]
[382394058,1756596647091,-279.340074,0.00018629,2]
[382394060,1756596647102,-279.340074,0.00018629,2]
[382394062,1756596647111,-209.40437684,0.00018632,2]
[382394064,1756596647120,-151.0,0.00018633,2]
[382394066,1756596647129,-151.0,0.00018633,2]
[382394068,1756596647139,-151.0,0.00018633,2]
[382394070,1756596647148,-151.0,0.00018633,2]
[382394072,1756596647158,-151.0,0.00018633,2]
[382394074,1756596647167,-212.6688,0.00018633,2]
[382394076,1756596647176,-151.0,0.00018633,2]
[382394078,1756596647185,-151.0,0.00018633,2]
[382394080,1756596647195,-151.0,0.00018633,2]
[382394082,1756596647204,-151.0,0.00018633,2]
[382394084,1756596647213,-151.0,0.00018633,2]
[382394086,1756596647222,-151.0,0.00018633,2]
[382394088,1756596647231,-151.0,0.00018633,2]
[382394090,1756596647240,-151.0,0.00018633,2]
[382394092,1756596647250,-151.0,0.00018633,2]
[382394094,1756596647259,-151.0,0.00018633,2]
[382394096,1756596647268,-279.340074,0.00018633,2]
[382394098,1756596647277,-279.340074,0.00018633,2]
[382394100,1756596647287,-93.21632568,0.00018633,2]
[382397155,1756596856258,291.792983,0.00017578,2]
[382397156,1756597065392,3838.794317,0.00018,2]
[382397157,1756597065419,959.2611406,0.00018,2]
[382397164,1756597327779,318.37692,0.00013699,2]
[382397256,1756597837787,-2943.7878729,0.000182,2]
[382397257,1756597837799,-250.0,0.00018431,2]
[382397258,1756597837811,-500.07897282,0.00018433,2]
[382397259,1756597837821,-200.0,0.00018433,10]
[382397260,1756597837831,-1601.7817924,0.00018499,2]
[382397261,1756597837841,-164.01263716,0.00018504,2]
[382397262,1756597837850,-209.40437684,0.00018529,2]
[382397263,1756597837861,-300.0,0.00018529,2]
[382397264,1756597837873,-239.0,0.00018529,2]
[382397265,1756597837882,-1422.76,0.0001853,3]
[382397266,1756597837892,-711.38,0.0001853,3]
[382397267,1756597837902,-355.69,0.0001853,3]
[382397268,1756597837912,-177.84,0.0001853,3]
[382397269,1756597837922,-533.57,0.0001853,3]
[382397270,1756597837931,-500.0,0.0001853,2]
[382397271,1756597837940,-515.45328722,0.0001853,2]
[382397272,1756597837950,-500.0,0.0001853,2]
[382397273,1756597837959,-500.0,0.0001853,2]
[382397274,1756597837969,-500.0,0.0001853,2]
[382397275,1756597837978,-500.0,0.0001853,2]
[382397276,1756597837987,-500.0,0.0001853,2]
[382397277,1756597837996,-500.0,0.0001853,2]
[382397278,1756597838006,-500.0,0.0001853,2]
[382397279,1756597838015,-500.0,0.0001853,2]
[382397280,1756597838024,-500.0,0.0001853,2]
[382397281,1756597838033,-500.0,0.0001853,2]
[382397282,1756597838043,-500.0,0.0001853,2]
[382397283,1756597838052,-500.0,0.0001853,2]
[382397284,1756597838061,-500.0,0.0001853,2]
[382397285,1756597838071,-500.0,0.0001853,2]
[382397286,1756597838080,-155.74106066,0.0001853,2]
[382397287,1756597838105,-344.25893934,0.0001853,2]
[382397288,1756597838115,-115.96431319,0.0001853,2]
[382397301,1756597839824,-299.08461919,0.0001853,2]
[382397346,1756597866428,5000.0,0.00018,2]
[382397347,1756598181408,-5000.0,0.00018343,2]
[382397348,1756598185525,-2271.3819394,0.0001843,2]
[382397349,1756598185635,-10000.01,0.0001843,2]
[382397350,1756598185751,-10000.01,0.0001843,2]
[382397351,1756598185911,-10000.01,0.0001843,2]
[382397352,1756598186030,-10000.01,0.0001843,2]
[382397353,1756598186191,-10000.01,0.0001843,2]
[382397354,1756598186302,-10000.01,0.0001843,2]
[382397355,1756598186434,-10000.01,0.0001843,2]
[382397356,1756598188053,13716.1354647,0.0001753,2]
[382397357,1756598253290,1000.0,0.00031107,60]
[382397358,1756598294399,1000.0,0.00031107,60]
[382397359,1756598309027,1000.0,0.00031107,60]
[382397360,1756598406214,227.06,0.000141,5]
[382397361,1756598409152,310.350225,0.00013699,2]
[382397366,1756598987644,159.0,0.000273,120]
[382397367,1756599017841,159.0,0.00018,2]
[382397368,1756599018783,159.0,0.00018,2]
[382397369,1756599019599,159.0,0.00018,2]
[382397370,1756599022527,159.0,0.00018,2]
[382397385,1756599032628,-1200.0,0.00018265,2]
[382397386,1756599032638,-277.0,0.00018266,2]
[382397387,1756599032648,-300.0,0.00018266,2]
[382397388,1756599032658,-300.0,0.00018266,2]
[382397389,1756599032668,-974.0,0.00018267,2]
[382397390,1756599032678,-632.0,0.00018267,2]
[382397391,1756599032688,-2152.0,0.00018267,2]
[382397392,1756599032698,-409.0,0.00018267,2]
[382397393,1756599032707,-558.45169726,0.00018324,2]
[382397394,1756599032717,-729.14726273,0.00018327,2]
[382397395,1756599032728,-2347.87260389,0.00018414,2]
[382397396,1756599032739,-1067.85452828,0.00018415,2]
[382397397,1756599032748,-16888.21920116,0.00018416,2]
[382397398,1756599032823,-500.0,0.00018416,2]
[382397418,1756599040202,-2611.80079884,0.00018416,2]
[382397419,1756599040212,-889.22,0.00018416,3]
[382397420,1756599040221,-666.95,0.00018419,3]
[382397421,1756599040230,-209.40437684,0.00018419,2]
[382397422,1756599040239,-444.61,0.0001842,3]
[382397423,1756599040249,-222.3,0.0001842,3]
[382397424,1756599040258,-500.0,0.00018422,2]
[382397425,1756599040268,-500.0,0.00018422,2]
[382397426,1756599040277,-350.89541329,0.00018422,2]
[382397427,1756599040287,-500.0,0.00018422,2]
[382397428,1756599040296,-500.0,0.00018422,2]
[382397429,1756599040305,-500.0,0.00018422,2]
[382397430,1756599040314,-500.0,0.00018422,2]
[382397431,1756599040323,-500.0,0.00018422,2]
[382397432,1756599040332,-518.42812545,0.00018422,2]
[382397433,1756599040342,-500.0,0.00018422,2]
[382397434,1756599040351,-500.0,0.00018422,2]
[382397435,1756599040360,-500.0,0.00018422,2]
[382397436,1756599040369,-500.0,0.00018422,2]
[382397437,1756599040379,-500.0,0.00018422,2]
[382397438,1756599040388,-500.0,0.00018422,2]
[382397439,1756599040397,-500.0,0.00018422,2]
[382397440,1756599040406,-500.0,0.00018422,2]
[382397441,1756599040416,-500.0,0.00018422,2]
[382397442,1756599040425,-276.87276032,0.00018422,2]
[382397444,1756599040435,-500.0,0.00018422,2]
[382397446,1756599040444,-399.17024286,0.00018422,2]
[382397448,1756599040456,-100.82975714,0.00018422,2]
[382397450,1756599040466,-298.77725074,0.00018422,2]
[382397452,1756599040477,-201.22274926,0.00018422,2]
[382397454,1756599040487,-208.86725074,0.00018422,2]
[382397461,1756599044960,158.0,0.00018,3]
[382397487,1756599054560,158.0,0.00018,3]
[382397489,1756599303208,2880.0,0.00017,2]
[382397491,1756599427235,368.744388,0.00013699,2]
[382397502,1756599937282,1168.8097909,0.00017379,2]
[382397506,1756600074802,-397.4250688,0.00018082,2]
[382397507,1756600074832,-645.0,0.00018319,2]
[382397508,1756600074861,-300.0,0.00018319,2]
[382397509,1756600074889,-583.31781016,0.0001832,2]
[382397510,1756600075140,-241.55983818,0.0001832,2]
[382397511,1756600075170,-10000.01,0.0001832,2]
[382397512,1756600075196,-10000.01,0.0001832,2]
[382397513,1756600075393,-1025.15743553,0.0001832,2]
[382397514,1756600075423,-163.15474,0.00018334,2]
[382397515,1756600075453,-517.68,0.00018407,3]
[382397516,1756600075482,-209.40437684,0.00018407,2]
[382397517,1756600075510,-172.55,0.0001841,3]
[382397518,1756600075538,-151.0,0.00018414,2]
[382397519,1756600075566,-151.0,0.00018414,2]
[382397520,1756600075600,-151.0,0.00018414,2]
[382397521,1756600075635,-151.0,0.00018414,2]
[382397522,1756600075674,-151.0,0.00018414,2]
[382397523,1756600075702,-151.0,0.00018414,2]
[382397524,1756600075729,-151.0,0.00018414,2]
[382397525,1756600075758,-151.0,0.00018414,2]
[382397526,1756600075785,-151.0,0.00018414,2]
[382397527,1756600075814,-151.0,0.00018414,2]
[382397528,1756600075843,-151.0,0.00018414,2]
[382397529,1756600075871,-151.0,0.00018414,2]
[382397530,1756600075900,-151.0,0.00018414,2]
[382397531,1756600075928,-200.006537,0.00018414,2]
[382397532,1756600075956,-500.0,0.00018414,2]
[382397533,1756600076067,-500.0,0.00018414,2]
[382397534,1756600076095,-500.0,0.00018414,2]
[382397535,1756600076126,-500.0,0.00018414,2]
[382397536,1756600076155,-546.28473886,0.00018414,2]
[382397537,1756600076186,-500.0,0.00018414,2]
[382397538,1756600076214,-279.65132433,0.00018414,2]
[382397539,1756600076245,-500.0,0.00018414,2]
[382397540,1756600076276,-500.0,0.00018414,2]
[382397541,1756600076306,-500.0,0.00018414,2]
[382397542,1756600076334,-500.0,0.00018414,2]
[382397543,1756600076434,-500.0,0.00018414,2]
[382397544,1756600076466,-500.0,0.00018414,2]
[382397545,1756600076496,-500.0,0.00018414,2]
[382397546,1756600076525,-500.0,0.00018414,2]
[382397547,1756600076555,-500.0,0.00018414,2]
[382397548,1756600076585,-500.0,0.00018414,2]
[382397549,1756600076619,-500.0,0.00018414,2]
[382397550,1756600076649,-500.0,0.00018414,2]
[382397551,1756600076678,-500.0,0.00018414,2]
[382397552,1756600076706,-500.0,0.00018414,2]
[382397553,1756600076848,-500.0,0.00018414,2]
[382397554,1756600076871,-500.0,0.00018414,2]
[382397555,1756600076894,-500.0,0.00018414,2]
[382397556,1756600076920,-500.0,0.00018414,2]
[382397557,1756600076950,-500.0,0.00018414,2]
[382397558,1756600076980,-628.25634102,0.00018414,2]
[382397559,1756600077008,-500.0,0.00018414,2]
[382397560,1756600077215,-250.0,0.00018414,2]
[382397561,1756600077249,-500.0,0.00018414,2]
[382397562,1756600077278,-500.0,0.00018414,2]
[382397563,1756600077415,-500.0,0.00018414,2]
[382397564,1756600077447,-500.0,0.00018414,2]
[382397565,1756600077476,-500.0,0.00018414,2]
[382397566,1756600077506,-500.0,0.00018414,2]
[382397567,1756600077536,-500.0,0.00018414,2]
[382397568,1756600077568,-500.0,0.00018414,2]
[382397569,1756600077604,-500.0,0.00018414,2]
[382397570,1756600077633,-500.0,0.00018414,2]
[382397571,1756600077668,-500.0,0.00018414,2]
[382397572,1756600077699,-500.0,0.00018414,2]
[382397573,1756600077845,-500.0,0.00018414,2]
[382397574,1756600077876,-500.0,0.00018414,2]
[382397575,1756600077907,-500.0,0.00018414,2]
[382397576,1756600077936,-500.0,0.00018414,2]
[382397577,1756600077967,-500.0,0.00018414,2]
[382397578,1756600077998,-500.0,0.00018414,2]
[382397579,1756600078027,-500.0,0.00018414,2]
[382397580,1756600078059,-500.0,0.00018414,2]
[382397581,1756600078091,-500.0,0.00018414,2]
[382397582,1756600078122,-500.0,0.00018414,2]
[382397583,1756600078341,-500.0,0.00018414,2]
[382397584,1756600078371,-500.0,0.00018414,2]
[382397585,1756600078399,-500.0,0.00018414,2]
[382397586,1756600078426,-403.9515798,0.00018414,2]
[382397587,1756600078457,-500.0,0.00018414,2]
[382397588,1756600078486,-500.0,0.00018414,2]